Workbook

Sheet 軌道
A2: 地球モデル定数
A3: 長半径＝赤道半径 | B3: a | C3: 6378137 | D3: m
A4: 短半径＝極半径 | B4: b | C4: 6356752.314 | D4: m
A5: 平均半径 | B5: Re＝ (2a+b)/3 | C5: =(2*$C$3+$C$4)/3 -> 6371008.771 | D5: m
A6: 空気塊を含む地心重力定数 | B6: GM | C6: 398600500000000 | D6: m^3/s^2
A7: 自転角速度 | B7: ω | C7: 7.292115e-05 | D7: s^-1
A8: 扁平率 | B8: f＝ 1/298.257 222 101 | C8: =1/298.257222101 -> 0.003352810681
A9: 離心率の2乗 | B9: e^2 ＝f(2-f) | C9: =$C$8*(2-$C$8) -> 0.006694380023
A10: 万有引力定数 | B10: G | C10: 6.67428e-11 | D10: Nm^2/kg^2
A11: 地球質量 | B11: M | C11: 5.972187262e+24 | D11: kg
A13: 自転による遠心力含む地表面重力加速度
A14: 測地緯度 | B14: φD | C14: 35 | D14: deg
A15: 地心緯度 | B15: φC＝tan^-1{(1-e^2)sinφD/cosφD} | C15: =DEGREES(ATAN2(COS(RADIANS(C14)),(1-$C$9)*SIN(RADIANS(C14)))) -> 34.8193887 | D15: deg
A16: 測地緯度 | B16: φD＝tan^-1{sinφc/(1-e^2)cosφc} | C16: =DEGREES(ATAN2((1-$C$9)*COS(RADIANS(C15)),SIN(RADIANS(C15)))) -> 35 | D16: deg
A17: 測地距離1 | B17: N＝a/√(1－e^2sin^2φD) | C17: =$C$3/SQRT(1-$C9*SIN(RADIANS(C14))^2) -> 6385172.175 | D17: m
A18: 測地距離2 | B18: T＝(b^2/a^2)N | C18: =($C$4^2/$C$3^2)*C17 -> 6342427.406 | D18: m
A19: 地心半径 | B19: R＝√{(TsinφD)^2＋(NcosφD)^2} | C19: =SQRT((C18*SIN(RADIANS(C14)))^2+(C17*COS(RADIANS(C14)))^2) -> 6371141.231 | D19: m
A20: 万有引力 | B20: Fg＝GM/R＾2 | C20: =$C$6/C19^2 -> 9.81981655 | D20: m/s^2
A21: 遠心力 | B21: Fc＝ω^2Rcosφc | C21: =$C$7^2*C19*COS(RADIANS(C15)) -> 0.02781276395 | D21: m/s^2
A22: 遠心力半径方向 | B22: Fcr＝Fccosφc | C22: =C21*COS(RADIANS(C15)) -> 0.02283305641 | D22: m/s^2
A23: 遠心力接線方向 | B23: Fcn＝Fcsinφc | C23: =C21*SIN(RADIANS(C15)) -> 0.01588084928 | D23: m/s^2
A24: 地表面重力加速度 | B24: g＝√{(Fg－Fcr)^2+Fcn^2} | C24: =SQRT((C20-C22)^2+C23^2) -> 9.796996365 | D24: m/s^2
A25: 地表面重力加速度 | B25: g＝√{(GM/R^2)^2－2(GM/R)(ωcosφc)^2+(ω^2Rcosφc)^2} | C25: =SQRT(($C$6/C19^2)^2-2*(C$6/C19)*($C$7*COS(RADIANS(C15)))^2+($C$7^2*C19*COS(RADIANS(C15)))^2) -> 9.796996365 | D25: m/s^2
A27: 地表面地心半径ベクトル
A28: 地理緯度 | B28: φD | C28: 35 | D28: deg
A29: 東経 | B29: λ | C29: 135 | D29: deg
A30: 地心緯度 | B30: φC＝Atan2{cosφD,(1-e^2)sinφD} | C30: =DEGREES(ATAN2(COS(RADIANS(C28)),(1-$C$9)*SIN(RADIANS(C28)))) -> 34.8193887 | D30: deg
A31: 地表面地心半径ベクトル_x | B31: x＝ a / √(1 - e^2 sin^2φD)cosφDcosλ | C31: =$C$3/SQRT(1-$C$9*SIN(RADIANS(C28))^2)*COS(RADIANS(C28))*COS(RADIANS(C29)) -> -3698470.287 | D31: m
A32: 地表面地心半径ベクトル_y | B32: y＝ a / √(1 - e^2 sin^2φD)cosφDsinλ | C32: =$C$3/SQRT(1-$C$9*SIN(RADIANS(C28))^2)*COS(RADIANS(C28))*SIN(RADIANS(C29)) -> 3698470.287 | D32: m
A33: 地表面地心半径ベクトル_z | B33: z＝(1-e^2) a / √(1 - e^2 sin^2φD)sinφD | C33: =(1-$C$9)*$C$3/SQRT(1-$C$9*SIN(RADIANS(C28))^2)*SIN(RADIANS(C28)) -> 3637866.909 | D33: m
A34: 地表面地心半径 | B34: r＝√(x^2+y^2+z^2) | C34: =SQRT(C31^2+C32^2+C33^2) -> 6371141.231 | D34: m
A35: 地表面地心半径 | B35: r＝√[{(a^2cosφD)^2+(b^2sinφD)^2}/{a^2(1-e^2sin^2φD)}] | C35: =SQRT((($C$3^2*COS(RADIANS(C28)))^2+($C$4^2*SIN(RADIANS(C28)))^2)/($C$3^2*(1-$C$9*SIN(RADIANS(C28))^2))) -> 6371141.231 | D35: m | E35: =C35-C34 -> -2.328306437e-07
A36: 地表面地心半径ベクトル_x | B36: x＝rcosφccosλ | C36: =C35*COS(RADIANS(C30))*COS(RADIANS(C29)) -> -3698470.287 | D36: m | E36: =C36-C31 -> 1.34576112e-07
A37: 地表面地心半径ベクトル_y | B37: y＝rcosφcsinλ | C37: =C35*COS(RADIANS(C30))*SIN(RADIANS(C29)) -> 3698470.287 | D37: m | E37: =C37-C32 -> -1.350417733e-07
A38: 地表面地心半径ベクトル_z | B38: z＝rsinφc | C38: =C35*SIN(RADIANS(C30)) -> 3637866.909 | D38: m | E38: =C38-C33 -> -1.322478056e-07
A40: 軌道要素
A41: 地理緯度 | B41: φD | C41: =C28 -> 35 | D41: deg
A42: 東経 | B42: λ | C42: =C29 -> 135 | D42: deg
A43: 高度 | B43: h | C43: 30000000 | D43: m
A44: 地心半径ベクトル_x | B44: x=[{a/√(1-e^2sin^2φD)}+h]cosλ | C44: =(C$3/SQRT(1-$C$9*SIN(RADIANS(C41))^2)+C43)*COS(RADIANS(C41))*COS(RADIANS(C42)) -> -21075309.25 | D44: m
A45: 地心半径ベクトル_y | B45: y=[{a/√(1-e^2sin^2φD)}+h]sinλ | C45: =(C$3/SQRT(1-$C$9*SIN(RADIANS(C41))^2)+C43)*COS(RADIANS(C41))*SIN(RADIANS(C42)) -> 21075309.25 | D45: m
A46: 地心半径ベクトル_z | B46: z=[(1-e^2){a/√(1-e^2sin^2φD)}+h]sinφD | C46: =(1-$C$9)*($C$3/SQRT(1-$C$9*SIN(RADIANS(C41))^2)+C43)*SIN(RADIANS(C41)) -> 20729967.84 | D46: m
A47: 地心半径 | B47: r=√(x^2+y^2+z^2) | C47: =SQRT(C44^2+C45^2+C46^2) -> 36305218.45 | D47: m
A48: 地心緯度 | B48: φc=tan^-1{z/√(x^2+y^2)} | C48: =DEGREES(ATAN2(SQRT(C44^2+C45^2),C46)) -> 34.8193887 | D48: deg
A49: 地理緯度 | B49: φD=tan^-1[z/{(1-e^2)√(x^2+y^2)}] | C49: =DEGREES(ATAN2((1-$C$9)*SQRT(C44^2+C45^2),C46)) -> 35 | D49: deg | E49: =C49-C41 -> 0
A50: 東経 | B50: λ=tan^-1(y/x) | C50: =DEGREES(ATAN2(C44,C45)) -> 135 | D50: deg | E50: =C50-C42 -> 0
A51: 高度 | B51: h=√[{√(x^2+y^2)-acosφD/√(1-e^2sin^2φD)}^2+{z-a(1-e^2)sinφD/√(1-e^2sin^2φD)}^2] | C51: =SQRT((SQRT(C44^2+C45^2)-$C$3*COS(RADIANS(C49))/SQRT(1-$C$9*SIN(RADIANS(C49))^2))^2+(C46-$C$3*(1-$C$9)*SIN(RADIANS(C49))/SQRT(1-$C$9*SIN(RADIANS(C49))^2))^2) -> 29934077.22 | D51: m | E51: =C51-C43 -> -65922.78445
A52: 慣性速度 | B52: v | C52: 1000 | D52: m/s
A53: 慣性速度方位角 | B53: μ | C53: 90 | D53: deg
A54: 慣性速度上下角 | B54: θ | C54: 30 | D54: deg
A55: 慣性速度ベクトル_x | B55: vx | C55: =C$52*D55 -> -901.9864184 | D55: -0.9019864184 | E55: =exe("v",D55:D57=matrtn(matrtn(matrtn(rtnmat(C42,3),90-C41,2),180-C53,3),-C54,2)) -> v
A56: 慣性速度ベクトル_y | B56: vy | C56: =C$52*D56 -> -322.758453 | D56: -0.322758453
A57: 慣性速度ベクトル_z | B57: vz | C57: =C$52*D57 -> 286.7882182 | D57: 0.2867882182
A58: 慣性速度 | B58: v | C58: =SQRT(C55^2+C56^2+C57^2) -> 1000 | D58: m/s | E58: =C58-C52 -> 0
A59: 角運動量ベクトルx | B59: hx＝yvz－zvy | C59: =C45*C57-C46*C56 -> 1.273492274e+10 | D59: m^2/s
A60: 角運動量ベクトルy | B60: hy＝zvx－xvz | C60: =C46*C55-C44*C57 -> -1.265399906e+10 | D60: m^2/s
A61: 角運動量ベクトルz | B61: hz＝xvy－yvx | C61: =C44*C56-C45*C55 -> 2.581187691e+10 | D61: m^2/s
A62: 角運動量 | B62: h=√(hx^2+hy^2+hz^2) | C62: =SQRT(C59^2+C60^2+C61^2) -> 3.144129353e+10 | D62: m^2/s
A63: 慣性速度方位角 | B63: μ= tan^-1(rhz/yhx-xhy) | C63: =DEGREES(ATAN2(C45*C59-C44*C60,C47*C61)) -> 89.89572431 | D63: deg | E63: =C63-C53 -> -0.104275694
A64: 慣性速度上下角 | B64: θ＝90－cos^-1{(xvx+yvy+zvz)/(rv)} | C64: =90-DEGREES(ACOS((C44*C55+C45*C56+C46*C57)/C47/C58)) -> 29.99983565 | D64: deg | E64: =C64-C54 -> -0.0001643523258
A66: 長半径 | B66: a=1/(2/r-v^2/GM) | C66: =1/(2/C47-C52^2/$C$6) -> 19018738.93 | D66: m
A67: 長半径 | B67: a=(ra+rp)/2 | C67: =(E81+E80)/2 -> 19018738.93 | D67: m
A68: 長半径 | B68: a=-GM/(2E) | C68: =-$C$6/(2*C89) -> 19018738.93 | D68: m
A69: 短半径 | B69: b=a√(1－e^2) | C69: =C67*SQRT(1-C76^2) -> 6867874.399
A70: 短半径 | B70: b=√(rarp) | C70: =SQRT(C80*C81) -> 6867874.399
A71: 半通径 | B71: p=h^2/GM | C71: =C62^2/$C$6 -> 2480064.473 | D71: m
A72: 半通径 | B72: p=a(1-e^2) | C72: =C66*(1-C74^2) -> 2480064.473 | D72: m
A73: 半通径 | B73: p=rarp/a | C73: =C81*C80/C66 -> 2480064.473 | D73: m
A74: 離心率 | B74: e=√{1-h^2(2/r-v^2/GM)} | C74: =SQRT(1-C71*(2/C47-C52^2/$C$6)) -> 0.9325228685
A75: 離心率 | B75: e=√(1-p/a) | C75: =SQRT(1-C71/C66) -> 0.9325228685
A76: 離心率 | B76: e=(ra-rp)/(ra+rp) | C76: =(E81-E80)/(E81+E80) -> 0.9325228685
A77: 離心率 | B77: e=1+2rpE/GM | C77: =1+2*E80*C89/$C$6 -> 0.9325228685
A78: 軌道半径 | B78: r=p/(1+ecosν) | C78: =C71/(1+C75*COS(RADIANS(C96))) -> 36305218.45 | D78: m | E78: =C78-C47 -> 0
A79: 速度 | B79: v=√{GM(2/r-1/a)} | C79: =SQRT($C$6*(2/C47-1/C66)) -> 1000 | D79: m/s | E79: =C79-C52 -> 0
A80: 近地点半径 | B80: rp=a(1-e) | C80: =C66*(1-C75) -> 1283329.949 | D80: m | E80: =C80 -> 1283329.949
A81: 遠地点半径 | B81: ra=a(1+e) | C81: =C66*(1+C75) -> 36754147.92 | D81: m | E81: =C81 -> 36754147.92
A82: 近地点速度 | B82: vp=√[GM(1+e)/{a(1-e)}] | C82: =SQRT($C$6*(1+C75)/(C66*(1-C75))) -> 24499.77387 | D82: m/s
A83: 近地点速度 | B83: vp＝√[GM{2/rp－1/a}] | C83: =SQRT($C$6*(2/C80-1/C66)) -> 24499.77387 | D83: m/s
A84: 近地点速度 | B84: vp＝√{(GM/a)(ra/rp)} | C84: =SQRT(($C$6/C66)*(C81/C80)) -> 24499.77387 | D84: m/s
A85: 遠地点速度 | B85: va=√[GM(1-e)/{a(1+e)}] | C85: =SQRT($C$6*(1-C75)/(C66*(1+C75))) -> 855.448849 | D85: m/s
A86: 遠地点速度 | B86: va＝√[GM{2/ra－1/a}] | C86: =SQRT($C$6*(2/C81-1/C66)) -> 855.448849 | D86: m/s
A87: 遠地点速度 | B87: va＝√{(GM/a)(rp/ra)} | C87: =SQRT(($C$6/C66)*(C80/C81)) -> 855.448849 | D87: m/s
A88: 軌道周期 | B88: T=2π√(a^3/GM) | C88: =2*PI()*SQRT(C66^3/$C$6)/3600 -> 7.25071815 | D88: hr
A89: 軌道エネルギー | B89: E=-GM/(2a) | C89: =-$C$6/(2*C66) -> -10479151.68 | D89: m^2/s^2
A90: 軌道エネルギー | B90: E=-GM/r+v^2/2 | C90: =-$C$6/C47+C52^2/2 -> -10479151.68 | D90: m^2/s^2
A91: 昇降点経度 | B91: Ω=tan^-2{hx/(-hy) } | C91: =DEGREES(ATAN2(-C60,C59)) -> 45.18262176 | D91: deg
A92: 軌道傾斜角 | B92: i =tan^-1(√(hx^2+hz^2)/hz) | C92: =DEGREES(ATAN2(C61,SQRT(C59^2+C60^2))) -> 34.81952513 | D92: deg
A93: 緯度引数 | B93: u =tan^-1(zh/yhx-xhy) | C93: =DEGREES(ATAN2(C45*C59-C44*C60,C46*C62)) -> 89.85007565 | D93: deg
A94: 離心近点離角 | B94: E=tan^-1[{(xvx+yvy+zvz)/√(GMa)}/(1-r/a)] | C94: =DEGREES(ATAN2(1-C47/C66,(C44*C55+C45*C56+C46*C57)/SQRT($C$6*C66))) -> 167.0810725 | D94: deg
A95: 平均近点離角 | B95: M=E-tanE | C95: =C94-DEGREES(TAN(RADIANS(C94))) -> 180.2234796 | D95: deg
A96: 真近点離角 | B96: ν=tan^-1{h(xvx+yvy+zvz)/(h^2 - GMr)} | C96: =DEGREES(ATAN2(C62^2-$C$6*C47,C62*(C44*C55+C45*C56+C46*C57))) -> 177.576053 | D96: deg
A97: 近地点引数 | B97: ω=u-ν | C97: =C93-C96 -> -87.7259774 | D97: deg

Sheet 方位角、2点間距離
A2: 地球モデル定数
A3: 長半径＝赤道半径 | B3: a | C3: 6378137 | D3: m
A4: 短半径＝極半径 | B4: b | C4: 6356752.314 | D4: m
A5: 平均半径 | B5: Re＝ (2a+b)/3 | C5: =(2*$C$3+$C$4)/3 -> 6371008.771 | D5: m
A6: 空気塊を含む地心重力定数 | B6: GM | C6: 398600500000000 | D6: m^3/s^2
A7: 自転角速度 | B7: ω | C7: 7.292115e-05 | D7: s^-1
A8: 扁平率 | B8: f＝ 1/298.257 222 101 | C8: =1/298.257222101 -> 0.003352810681
A9: 離心率の2乗 | B9: e^2 ＝f(2-f) | C9: =$C$8*(2-$C$8) -> 0.006694380023
A10: 万有引力定数 | B10: G | C10: 6.67428e-11 | D10: Nm^2/kg^2
A11: 地球質量 | B11: M | C11: 5.972187262e+24 | D11: kg
A14: 球面三角法
B15: cosa=cosbcosc+sinbsinccosA | D15: A=Δλ | E15: cosa=cosbcosc+sinbsinccosA
B16: cosb=cosccosa+sincsinacosB | D16: b=90-φcq | E16: =sinφcqsinφcp+cosφcqcosφcpcosΔλ
B17: cosc=cosacosb+sinasinbcosC | D17: c=90-φcp | E17: cosθ=sinφcpsinφcq+cosφcpcosφcqcosΔλ
B18: sina/sinA=sinb/sinB=sinc/sinC | E18: cosB=(cosbsinc-sinbcosccosA)/sina
B19: sinacosB=cosbsinc-sinbcosccosA | D19: a=θ:地心角 | E19: sinB=sinbsinA/sina
B20: sinacosC=coscsinb-sinccosbcosA | E20: tanB=sinbsinA/(cosbsinc-sinbcosccosA)
B21: tan{(A+B)/2}/tan{(A-B)/2}=tan{(a+b)/2}/tan{(a-b)/2} | D21: P=μ:方位角 | E21: =cosφcqsinΔλ/(sinφcqcosφcp-cosφcqsinφcpcosΔλ)
B22: cotasinb=cosbcosC+cotAsinC | E22: tanμ=cosφcqsinΔλ/(cosφcpsinφcq-sinφcpcosφcqcosΔλ)
A24: 方位角、地表面距離
A25: 点P測地緯度 | B25: φp | C25: 35 | D25: deg
A26: 点P東経 | B26: λp | C26: 135 | D26: deg
A27: 点P地心緯度 | B27: φcp＝tan^-1{(1-e^2)sinφp/cosφp} | C27: =DEGREES(ATAN2(COS(RADIANS(C25)),(1-$C$9)*SIN(RADIANS(C25)))) -> 34.8193887 | D27: deg
A28: 点P地心半径 | B28: rp＝√[{(a^2cosφp)^2+(b^2sinφp)^2}/{a^2(1-e^2sin^2φp)}] | C28: =SQRT((($C$3^2*COS(RADIANS(C25)))^2+($C$4^2*SIN(RADIANS(C25)))^2)/($C$3^2*(1-$C$9*SIN(RADIANS(C25))^2))) -> 6371141.231 | D28: m
A29: 点Q測地緯度 | B29: φq | C29: 40 | D29: deg
A30: 点Q東経 | B30: λq | C30: 140 | D30: deg
A31: 点Q地心緯度 | B31: φcq＝tan^-1{(1-e^2)sinφq/cosφq} | C31: =DEGREES(ATAN2(COS(RADIANS(C29)),(1-$C$9)*SIN(RADIANS(C29)))) -> 39.81061055 | D31: deg
A32: 点Q地心半径 | B32: rq＝√[{(a^2cosφq)^2+(b^2sinφq)^2}/{a^2(1-e^2sin^2φq)}] | C32: =SQRT((($C$3^2*COS(RADIANS(C29)))^2+($C$4^2*SIN(RADIANS(C29)))^2)/($C$3^2*(1-$C$9*SIN(RADIANS(C29))^2))) -> 6369344.863 | D32: m
A33: PQ間の地心角 | B33: θ=cos^-1{sinφcpsinφcq+cosφcpcosφcqcos(λq-λp)} | C33: =DEGREES(ACOS(SIN(RADIANS(C27))*SIN(RADIANS(C31))+COS(RADIANS(C27))*COS(RADIANS(C31))*COS(RADIANS(C30-C26)))) -> 6.379208779 | D33: deg
A34: 方位角 | B34: μ=tan^-1[cosφcqsin(λq-λp)/{cosφcpsinφcq-sinφcpcosφcqcos(λq-λp)}] | C34: =DEGREES(ATAN2(COS(RADIANS(C27))*SIN(RADIANS(C31))-SIN(RADIANS(C27))*COS(RADIANS(C31))*COS(RADIANS(C30-C26)),COS(RADIANS(C31))*SIN(RADIANS(C30-C26)))) -> 37.05382976 | D34: deg
A35: 地表面距離 | B35: d=Recos^-1(sinφcpsinφcq+cosφcpcosφcqcos(λq-λp)) | C35: =$C$5*ACOS(SIN(RADIANS(C27))*SIN(RADIANS(C31))+COS(RADIANS(C27))*COS(RADIANS(C31))*COS(RADIANS(C30-C26))) -> 709336.6288 | D35: m | E35: =C35-GeoDes(C$25,C$26,C$29,C$30) -> 82.35050629
B36: d=average(rp,rq)ecos^-1(sinφcpsinφcq+cosφcpcosφcqcos(λq-λp)) | C36: =AVERAGE(C28,C32)*ACOS(SIN(RADIANS(C27))*SIN(RADIANS(C31))+COS(RADIANS(C27))*COS(RADIANS(C31))*COS(RADIANS(C30-C26))) -> 709251.3744 | D36: m | E36: =C36-GeoDes(C$25,C$26,C$29,C$30) -> -2.903875249
A39: ある位置から見て方位角方向に地表面距離だけ離れた位置（緯度、経度）を求める
A40: 点P測地緯度 | B40: φp | C40: 35 | D40: deg | E40: =C40-C$25 -> 0
A41: 点P東経 | B41: λp | C41: 135 | D41: deg | E41: =C41-C$26 -> 0
A42: 方位角 | B42: μ | C42: =C34 -> 37.05382976 | D42: deg | E42: =C42-C$34 -> 0
A43: 地表面距離 | B43: d | C43: =GeoDes(C$25,C$26,C$29,C$30) -> 709254.2783 | D43: m | E43: =C43-C$35 -> -82.35050629
A44: 点P地心緯度 | B44: φcp＝tan^-1{(1-e^2)sinφp/cosφp} | C44: =DEGREES(ATAN2(COS(RADIANS(C40)),(1-$C$9)*SIN(RADIANS(C40)))) -> 34.8193887 | D44: deg | E44: =C44-C$27 -> 0
A45: 点P地心半径 | B45: rp＝√[{(a^2cosφp)^2+(b^2sinφp)^2}/{a^2(1-e^2sin^2φp)}] | C45: =SQRT((($C$3^2*COS(RADIANS(C40)))^2+($C$4^2*SIN(RADIANS(C40)))^2)/($C$3^2*(1-$C$9*SIN(RADIANS(C40))^2))) -> 6371141.231 | D45: m | E45: =C45-C$28 -> 0
A46: PQ間の地心角 | B46: θ＝d/rp | C46: =DEGREES(C43/C45) -> 6.378335572 | D46: deg | E46: =C46-C$33 -> -0.0008732064544
A47: 点Q地心緯度 | B47: φcq=90-cos^-1(sinφcpcosθ+cosφcpsinθcosμ) | C47: =90-DEGREES(ACOS(SIN(RADIANS(C$44))*COS(RADIANS(C46))+COS(RADIANS(C$44))*SIN(RADIANS(C46))*COS(RADIANS(C$42)))) -> 39.80994251 | D47: deg | E47: =C47-C$31 -> -0.0006680454856
A48: 点Q測地緯度 | B48: φq＝tan^-1{sinφcq/(1-e^2)cosφcq) | C48: =DEGREES(ATAN2((1-$C$9)*COS(RADIANS(C47)),SIN(RADIANS(C47)))) -> 39.99933116 | D48: deg | E48: =C48-C$29 -> -0.0006688398048
A49: 点Q東経 | B49: λq=λp+tan^-1{(cosφcpsinθsinμ)/(cosθ-sinφcqsinφcp)} | C49: =C$41+DEGREES(ATAN2((COS(RADIANS(C46))-SIN(RADIANS(C47))*SIN(RADIANS(C$44))),(COS(RADIANS(C$44))*SIN(RADIANS(C46))*SIN(RADIANS(C$42))))) -> 139.999268 | D49: deg | E49: =IF(C49<0,C49+360,C49)-IF(C$30<0,C$30+360,C$30) -> -0.0007320278104
A50: 点Q地心半径 | B50: rq＝√[{(a^2cosφq)^2+(b^2sinφq)^2}/{a^2(1-e^2sin^2φq)}] | C50: =SQRT((($C$3^2*COS(RADIANS(C48)))^2+($C$4^2*SIN(RADIANS(C48)))^2)/($C$3^2*(1-$C$9*SIN(RADIANS(C48))^2))) -> 6369345.109 | D50: m | E50: =C50-C$32 -> 0.2454776708
A51: 方位角 | B51: μ=tan^-1[cosφcqsin(λq-λp)/{cosφcpsinφcq-sinφcpcosφcqcos(λq-λp)}] | C51: =DEGREES(ATAN2(COS(RADIANS(C$44))*SIN(RADIANS(C47))-SIN(RADIANS(C$44))*COS(RADIANS(C47))*COS(RADIANS(C49-C$41)),COS(RADIANS(C47))*SIN(RADIANS(C49-C$41)))) -> 37.05382976 | D51: deg | E51: =C51-C$34 -> 0
A52: 地表面距離 | B52: d=Reθ | C52: =$C$5*RADIANS(C46) -> 709239.5325 | D52: m | E52: =C52-GeoDes(C$40,C$41,C$48,C$49) -> 82.32553484
B53: d=average(rp,rq)θ | C53: =AVERAGE(C45,C50)*RADIANS(C46) -> 709154.3035 | D53: m | E53: =C53-GeoDes(C$40,C$41,C$48,C$49) -> -2.903513161
A56: 世界各地の成田から見た方位角と地表面距離 | K56: 方位角と地表面距離
B57: 成田 | C57: 地理緯度 | D57: 35.771337 | E57: 国土地理院 | G57: エクセル計算誤差
C58: 経度 | D58: 140.383927 | E58: [距離と方位角の計算]サイト | G58: 誤差比率[%] | K58: 地理緯度 | L58: 経度 | M58: 地心緯度 | N58: 地心半径 | O58: 国土地理院(基準) | Q58: 方位角誤差 | R58: 距離誤差
C59: 地心緯度 | D59: =DEGREES(ATAN2(COS(RADIANS(D57)),(1-$C$9)*SIN(RADIANS(D57)))) -> 35.58900588 | E59: 方位角 | F59: 距離 | G59: 方位角 | H59: 回転楕円体 | I59: 球体 | K59: [deg] | L59: [deg] | M59: [deg] | N59: [m] | O59: 方位角 | P59: 距離 | R59: 楕円体 | S59: 地球平均半径 | T59: 2点平均半径
C60: 地心半径 | D60: =SQRT((($C$3^2*COS(RADIANS(D57)))^2+($C$4^2*SIN(RADIANS(D57)))^2)/($C$3^2*(1-$C$9*SIN(RADIANS(D57))^2))) -> 6370870.166 | E60: [deg] | F60: [m] | G60: [deg] | H60: [m] | I60: [m] | J60: 起点 | K60: 35.771337 | L60: 140.383927 | M60: =DEGREES(ATAN2(COS(RADIANS(K60)),(1-$C$9)*SIN(RADIANS(K60)))) -> 35.58900588 | N60: =SQRT((($C$3^2*COS(RADIANS(K60)))^2+($C$4^2*SIN(RADIANS(K60)))^2)/($C$3^2*(1-$C$9*SIN(RADIANS(K60))^2))) -> 6370870.166 | O60: [deg] | P60: [m] | Q60: [deg] | R60: [m] | S60: [m] | T60: [m]
B61: ホノルル | C61: 地理緯度 | D61: 21.31235 | K61: 0 | L61: 0 | M61: 0 | N61: 6378137 | O61: 305.4447167 | P61: 14320269.99 | Q61: =IF(IF(ABS(DEGREES(ATAN2(COS(RADIANS(M$60))*SIN(RADIANS(M61))-SIN(RADIANS(M$60))*COS(RADIANS(M61))*COS(RADIANS(L61-L$60)),COS(RADIANS(M61))*SIN(RADIANS(L61-L$60)))))<0.000000001,0, DEGREES(ATAN2(COS(RADIANS(M$60))*SIN(RADIANS(M61))-SIN(RADIANS(M$60))*COS(RADIANS(M61))*COS(RADIANS(L61-L$60)),COS(RADIANS(M61))*SIN(RADIANS(L61-L$60)))))>=0, IF(ABS(DEGREES(ATAN2(COS(RADIANS(M$60))*SIN(RADIANS(M61))-SIN(RADIANS(M$60))*COS(RADIANS(M61))*COS(RADIANS(L61-L$60)),COS(RADIANS(M61))*SIN(RADIANS(L61-L$60)))))<0.000000001,0, DEGREES(ATAN2(COS(RADIANS(M$60))*SIN(RADIANS(M61))-SIN(RADIANS(M$60))*COS(RADIANS(M61))*COS(RADIANS(L61-L$60)),COS(RADIANS(M61))*SIN(RADIANS(L61-L$60))))), IF(ABS(DEGREES(ATAN2(COS(RADIANS(M$60))*SIN(RADIANS(M61))-SIN(RADIANS(M$60))*COS(RADIANS(M61))*COS(RADIANS(L61-L$60)),COS(RADIANS(M61))*SIN(RADIANS(L61-L$60)))))<0.000000001,0, DEGREES(ATAN2(COS(RADIANS(M$60))*SIN(RADIANS(M61))-SIN(RADIANS(M$60))*COS(RADIANS(M61))*COS(RADIANS(L61-L$60)),COS(RADIANS(M61))*SIN(RADIANS(L61-L$60)))))+360)-O61 -> -0.3346028328 | R61: =GeoDes(K$60,L$60,K61,L61)-P61 -> 11.19166911 | S61: =$C$5*ACOS(SIN(RADIANS(M$60))*SIN(RADIANS(M61))+COS(RADIANS(M$60))*COS(RADIANS(M61))*COS(RADIANS(L$60-L61)))-P61 -> 362.3718242 | T61: =AVERAGE(N$60,N61)*ACOS(SIN(RADIANS(M$60))*SIN(RADIANS(M61))+COS(RADIANS(M$60))*COS(RADIANS(M61))*COS(RADIANS(L$60-L61)))-P61 -> 8217.942905
C62: 経度 | D62: -157.928404 | E62: 87.36595556 | F62: 6145510.164 | G62: =IF(DEGREES(ATAN2(COS(RADIANS(D$59))*SIN(RADIANS(D63))-SIN(RADIANS(D$59))*COS(RADIANS(D63))*COS(RADIANS(D62-D$58)),COS(RADIANS(D63))*SIN(RADIANS(D62-D$58))))>=0,DEGREES(ATAN2(COS(RADIANS(D$59))*SIN(RADIANS(D63))-SIN(RADIANS(D$59))*COS(RADIANS(D63))*COS(RADIANS(D62-D$58)),COS(RADIANS(D63))*SIN(RADIANS(D62-D$58)))),DEGREES(ATAN2(COS(RADIANS(D$59))*SIN(RADIANS(D63))-SIN(RADIANS(D$59))*COS(RADIANS(D63))*COS(RADIANS(D62-D$58)),COS(RADIANS(D63))*SIN(RADIANS(D62-D$58))))+360)-E62 -> 0.0895879251 | H62: =GeoDes(D$57,D$58,D61,D62)-F62 -> 4.8364186 | I62: =$C$5*ACOS(SIN(RADIANS(D$59))*SIN(RADIANS(D63))+COS(RADIANS(D$59))*COS(RADIANS(D63))*COS(RADIANS(D62-D$58)))-F62 -> -1355.965525 | K62: =K61+45 -> 45 | L62: =L61 -> 0 | M62: 44.80757678 | N62: 6367489.544 | O62: 333.2052139 | P62: 10213761.87 | Q62: -0.1195618512 | R62: =GeoDes(K$60,L$60,K62,L62)-P62 -> 8.100033058 | S62: 12495.18909 | T62: 9559.551933
C63: 地心緯度 | D63: =DEGREES(ATAN2(COS(RADIANS(D61)),(1-$C$9)*SIN(RADIANS(D61)))) -> 21.18236325 | G63: =G62/$E62 -> 0.001025432899 | H63: =H62/$F62 -> 7.869840698e-07 | I63: =I62/$F62 -> -0.0002206432809 | K63: =K62+45 -> 90 | L63: =L62 -> 0 | M63: 90 | N63: 6356752.314 | O63: 0 | P63: 6041794.794 | Q63: 0 | R63: 4.772893218 | S63: 8440.035054 | T63: 1604.892264
C64: 地心半径 | D64: =SQRT((($C$3^2*COS(RADIANS(D61)))^2+($C$4^2*SIN(RADIANS(D61)))^2)/($C$3^2*(1-$C$9*SIN(RADIANS(D61))^2))) -> 6375332.658 | K64: -90 | L64: =L63 -> 0 | M64: -90 | N64: 6356752.314 | O64: 180 | P64: 13962136.67 | Q64: 0 | R64: 10.65615247 | S64: 2742.85607 | T64: -13033.71265
B65: ニューヨーク | C65: 地理緯度 | D65: 40.64118 | K65: =K64+45 -> -45 | L65: =L64 -> 0 | M65: -44.80757678 | N65: 6367489.544 | O65: 240.5063389 | P65: 16542986.74 | Q65: 0.08223162556 | R65: 12.81644487 | S65: -6823.430108 | T65: -11570.44313
C66: 経度 | D66: -73.778379 | E66: 25.41832778 | F66: 10853736.01 | G66: =IF(DEGREES(ATAN2(COS(RADIANS(D$59))*SIN(RADIANS(D67))-SIN(RADIANS(D$59))*COS(RADIANS(D67))*COS(RADIANS(D66-D$58)),COS(RADIANS(D67))*SIN(RADIANS(D66-D$58))))>=0,DEGREES(ATAN2(COS(RADIANS(D$59))*SIN(RADIANS(D67))-SIN(RADIANS(D$59))*COS(RADIANS(D67))*COS(RADIANS(D66-D$58)),COS(RADIANS(D67))*SIN(RADIANS(D66-D$58)))),DEGREES(ATAN2(COS(RADIANS(D$59))*SIN(RADIANS(D67))-SIN(RADIANS(D$59))*COS(RADIANS(D67))*COS(RADIANS(D66-D$58)),COS(RADIANS(D67))*SIN(RADIANS(D66-D$58))))+360)-E66 -> 0.1270125241 | H66: =GeoDes(D$57,D$58,D65,D66)-F66 -> 8.59722849 | I66: =$C$5*ACOS(SIN(RADIANS(D$59))*SIN(RADIANS(D67))+COS(RADIANS(D$59))*COS(RADIANS(D67))*COS(RADIANS(D66-D$58)))-F66 -> 13104.01068 | K66: 0 | L66: =L65+45 -> 45 | M66: =DEGREES(ATAN2(COS(RADIANS(K66)),(1-$C$9)*SIN(RADIANS(K66)))) -> 0 | N66: =SQRT((($C$3^2*COS(RADIANS(K66)))^2+($C$4^2*SIN(RADIANS(K66)))^2)/($C$3^2*(1-$C$9*SIN(RADIANS(K66))^2))) -> 6378137 | O66: 273.2971972 | P66: 10499593.09 | Q66: -0.1578204011 | R66: 8.192726476 | S66: -5436.301878 | T66: 320.2591819
C67: 地心緯度 | D67: =DEGREES(ATAN2(COS(RADIANS(D65)),(1-$C$9)*SIN(RADIANS(D65)))) -> 40.45107655 | G67: =G66/$E66 -> 0.00499688749 | H67: =H66/$F66 -> 7.920985438e-07 | I67: =I66/$F66 -> 0.001207327197 | K67: =K66+45 -> 45 | L67: =L66 -> 45 | M67: 44.80757678 | N67: 6367489.544 | O67: 311.0157417 | P67: 7683219.617 | Q67: -0.1167864315 | R67: 6.097820618 | S67: 5438.93648 | T67: 3231.764138
C68: 地心半径 | D68: =SQRT((($C$3^2*COS(RADIANS(D65)))^2+($C$4^2*SIN(RADIANS(D65)))^2)/($C$3^2*(1-$C$9*SIN(RADIANS(D65))^2))) -> 6369109.07 | K68: =K67+45 -> 90 | L68: =L67 -> 45 | M68: 90 | N68: 6356752.314 | O68: 0 | P68: 6041794.793 | Q68: 0 | R68: 4.773893181 | S68: 8440.036054 | T68: 1604.893264
B69: ロンドン | C69: 地理緯度 | D69: 51.470005 | K69: -90 | L69: =L68 -> 45 | M69: -90 | N69: 6356752.314 | O69: 180 | P69: 13962136.67 | Q69: 0 | R69: 10.65715243 | S69: 2742.85707 | T69: -13033.71165
C70: 経度 | D70: -0.454464 | E70: 336.7859917 | F70: 9614257.46 | G70: =IF(DEGREES(ATAN2(COS(RADIANS(D$59))*SIN(RADIANS(D71))-SIN(RADIANS(D$59))*COS(RADIANS(D71))*COS(RADIANS(D70-D$58)),COS(RADIANS(D71))*SIN(RADIANS(D70-D$58))))>=0,DEGREES(ATAN2(COS(RADIANS(D$59))*SIN(RADIANS(D71))-SIN(RADIANS(D$59))*COS(RADIANS(D71))*COS(RADIANS(D70-D$58)),COS(RADIANS(D71))*SIN(RADIANS(D70-D$58)))),DEGREES(ATAN2(COS(RADIANS(D$59))*SIN(RADIANS(D71))-SIN(RADIANS(D$59))*COS(RADIANS(D71))*COS(RADIANS(D70-D$58)),COS(RADIANS(D71))*SIN(RADIANS(D70-D$58))))+360)-E70 -> -0.09589679938 | H70: =GeoDes(D$57,D$58,D69,D70)-F70 -> 7.63375981 | I70: =$C$5*ACOS(SIN(RADIANS(D$59))*SIN(RADIANS(D71))+COS(RADIANS(D$59))*COS(RADIANS(D71))*COS(RADIANS(D70-D$58)))-F70 -> 12845.7872 | K70: =K69+45 -> -45 | L70: =L69 -> 45 | M70: -44.80757678 | N70: 6367489.544 | O70: 232.9143667 | P70: 13090621.62 | Q70: -0.02189154387 | R70: =GeoDes(K$60,L$60,K70,L70)-P70 -> 10.04995149 | S70: -7122.063375 | T70: -10877.9251
C71: 地心緯度 | D71: =DEGREES(ATAN2(COS(RADIANS(D69)),(1-$C$9)*SIN(RADIANS(D69)))) -> 51.28232718 | G71: =G70/$E70 -> -0.0002847410574 | H71: =H70/$F70 -> 7.940040967e-07 | I71: =I70/$F70 -> 0.001336118494 | K71: 0 | L71: =L70+45 -> 90 | M71: 0 | N71: 6378137 | O71: 244.3443472 | P71: 6538891.885 | Q71: -0.06539290959 | R71: 5.038791022 | S71: -4419.528407 | T71: -835.0489795
C72: 地心半径 | D72: =SQRT((($C$3^2*COS(RADIANS(D69)))^2+($C$4^2*SIN(RADIANS(D69)))^2)/($C$3^2*(1-$C$9*SIN(RADIANS(D69))^2))) -> 6365092.99 | K72: =K71+45 -> 45 | L72: =L71 -> 90 | M72: 44.80757678 | N72: 6367489.544 | O72: 299.6102778 | P72: 4326063.144 | Q72: -0.06247704992 | R72: 3.429736896 | S72: 1702.186867 | T72: 459.8213911
B73: ベルリン | C73: 地理緯度 | D73: 52.362483 | K73: =K72+45 -> 90 | L73: =L72 -> 90 | M73: 90 | N73: 6356752.314 | O73: 0 | P73: 6041794.792 | Q73: =IF(IF(ABS(DEGREES(ATAN2(COS(RADIANS(M$60))*SIN(RADIANS(M73))-SIN(RADIANS(M$60))*COS(RADIANS(M73))*COS(RADIANS(L73-L$60)),COS(RADIANS(M73))*SIN(RADIANS(L73-L$60)))))<0.000000001,0, DEGREES(ATAN2(COS(RADIANS(M$60))*SIN(RADIANS(M73))-SIN(RADIANS(M$60))*COS(RADIANS(M73))*COS(RADIANS(L73-L$60)),COS(RADIANS(M73))*SIN(RADIANS(L73-L$60)))))>=0, IF(ABS(DEGREES(ATAN2(COS(RADIANS(M$60))*SIN(RADIANS(M73))-SIN(RADIANS(M$60))*COS(RADIANS(M73))*COS(RADIANS(L73-L$60)),COS(RADIANS(M73))*SIN(RADIANS(L73-L$60)))))<0.000000001,0, DEGREES(ATAN2(COS(RADIANS(M$60))*SIN(RADIANS(M73))-SIN(RADIANS(M$60))*COS(RADIANS(M73))*COS(RADIANS(L73-L$60)),COS(RADIANS(M73))*SIN(RADIANS(L73-L$60))))), IF(ABS(DEGREES(ATAN2(COS(RADIANS(M$60))*SIN(RADIANS(M73))-SIN(RADIANS(M$60))*COS(RADIANS(M73))*COS(RADIANS(L73-L$60)),COS(RADIANS(M73))*SIN(RADIANS(L73-L$60)))))<0.000000001,0, DEGREES(ATAN2(COS(RADIANS(M$60))*SIN(RADIANS(M73))-SIN(RADIANS(M$60))*COS(RADIANS(M73))*COS(RADIANS(L73-L$60)),COS(RADIANS(M73))*SIN(RADIANS(L73-L$60)))))+360)-O73 -> 0 | R73: 4.774893139 | S73: 8440.037054 | T73: 1604.894264
C74: 経度 | D74: 13.50636 | E74: 330.305425 | F74: 8970163.292 | G74: =IF(DEGREES(ATAN2(COS(RADIANS(D$59))*SIN(RADIANS(D75))-SIN(RADIANS(D$59))*COS(RADIANS(D75))*COS(RADIANS(D74-D$58)),COS(RADIANS(D75))*SIN(RADIANS(D74-D$58))))>=0,DEGREES(ATAN2(COS(RADIANS(D$59))*SIN(RADIANS(D75))-SIN(RADIANS(D$59))*COS(RADIANS(D75))*COS(RADIANS(D74-D$58)),COS(RADIANS(D75))*SIN(RADIANS(D74-D$58)))),DEGREES(ATAN2(COS(RADIANS(D$59))*SIN(RADIANS(D75))-SIN(RADIANS(D$59))*COS(RADIANS(D75))*COS(RADIANS(D74-D$58)),COS(RADIANS(D75))*SIN(RADIANS(D74-D$58))))+360)-E74 -> -0.1055456813 | H74: =GeoDes(D$57,D$58,D73,D74)-F74 -> 7.124116482 | I74: =$C$5*ACOS(SIN(RADIANS(D$59))*SIN(RADIANS(D75))+COS(RADIANS(D$59))*COS(RADIANS(D75))*COS(RADIANS(D74-D$58)))-F74 -> 10866.97134 | K74: -90 | L74: =L73 -> 90 | M74: -90 | N74: 6356752.314 | O74: 180 | P74: 13962136.66 | Q74: =IF(IF(ABS(DEGREES(ATAN2(COS(RADIANS(M$60))*SIN(RADIANS(M74))-SIN(RADIANS(M$60))*COS(RADIANS(M74))*COS(RADIANS(L74-L$60)),COS(RADIANS(M74))*SIN(RADIANS(L74-L$60)))))<0.000000001,0, DEGREES(ATAN2(COS(RADIANS(M$60))*SIN(RADIANS(M74))-SIN(RADIANS(M$60))*COS(RADIANS(M74))*COS(RADIANS(L74-L$60)),COS(RADIANS(M74))*SIN(RADIANS(L74-L$60)))))>=0, IF(ABS(DEGREES(ATAN2(COS(RADIANS(M$60))*SIN(RADIANS(M74))-SIN(RADIANS(M$60))*COS(RADIANS(M74))*COS(RADIANS(L74-L$60)),COS(RADIANS(M74))*SIN(RADIANS(L74-L$60)))))<0.000000001,0, DEGREES(ATAN2(COS(RADIANS(M$60))*SIN(RADIANS(M74))-SIN(RADIANS(M$60))*COS(RADIANS(M74))*COS(RADIANS(L74-L$60)),COS(RADIANS(M74))*SIN(RADIANS(L74-L$60))))), IF(ABS(DEGREES(ATAN2(COS(RADIANS(M$60))*SIN(RADIANS(M74))-SIN(RADIANS(M$60))*COS(RADIANS(M74))*COS(RADIANS(L74-L$60)),COS(RADIANS(M74))*SIN(RADIANS(L74-L$60)))))<0.000000001,0, DEGREES(ATAN2(COS(RADIANS(M$60))*SIN(RADIANS(M74))-SIN(RADIANS(M$60))*COS(RADIANS(M74))*COS(RADIANS(L74-L$60)),COS(RADIANS(M74))*SIN(RADIANS(L74-L$60)))))+360)-O74 -> 0 | R74: =GeoDes(K$60,L$60,K74,L74)-P74 -> 10.65815239 | S74: 2742.85807 | T74: -13033.71065
C75: 地心緯度 | D75: =DEGREES(ATAN2(COS(RADIANS(D73)),(1-$C$9)*SIN(RADIANS(D73)))) -> 52.17622048 | G75: =G74/$E74 -> -0.0003195396542 | H75: =H74/$F74 -> 7.942014265e-07 | I75: =I74/$F74 -> 0.001211457471 | K75: =K74+45 -> -45 | L75: =L74 -> 90 | M75: -44.80757678 | N75: 6367489.544 | O75: 213.1810889 | P75: 10282800.48 | Q75: =IF(IF(ABS(DEGREES(ATAN2(COS(RADIANS(M$60))*SIN(RADIANS(M75))-SIN(RADIANS(M$60))*COS(RADIANS(M75))*COS(RADIANS(L75-L$60)),COS(RADIANS(M75))*SIN(RADIANS(L75-L$60)))))<0.000000001,0, DEGREES(ATAN2(COS(RADIANS(M$60))*SIN(RADIANS(M75))-SIN(RADIANS(M$60))*COS(RADIANS(M75))*COS(RADIANS(L75-L$60)),COS(RADIANS(M75))*SIN(RADIANS(L75-L$60)))))>=0, IF(ABS(DEGREES(ATAN2(COS(RADIANS(M$60))*SIN(RADIANS(M75))-SIN(RADIANS(M$60))*COS(RADIANS(M75))*COS(RADIANS(L75-L$60)),COS(RADIANS(M75))*SIN(RADIANS(L75-L$60)))))<0.000000001,0, DEGREES(ATAN2(COS(RADIANS(M$60))*SIN(RADIANS(M75))-SIN(RADIANS(M$60))*COS(RADIANS(M75))*COS(RADIANS(L75-L$60)),COS(RADIANS(M75))*SIN(RADIANS(L75-L$60))))), IF(ABS(DEGREES(ATAN2(COS(RADIANS(M$60))*SIN(RADIANS(M75))-SIN(RADIANS(M$60))*COS(RADIANS(M75))*COS(RADIANS(L75-L$60)),COS(RADIANS(M75))*SIN(RADIANS(L75-L$60)))))<0.000000001,0, DEGREES(ATAN2(COS(RADIANS(M$60))*SIN(RADIANS(M75))-SIN(RADIANS(M$60))*COS(RADIANS(M75))*COS(RADIANS(L75-L$60)),COS(RADIANS(M75))*SIN(RADIANS(L75-L$60)))))+360)-O75 -> -0.01806221788 | R75: =GeoDes(K$60,L$60,K75,L75)-P75 -> 7.769962171 | S75: -6063.6276 | T75: -9013.755922
C76: 地心半径 | D76: =SQRT((($C$3^2*COS(RADIANS(D73)))^2+($C$4^2*SIN(RADIANS(D73)))^2)/($C$3^2*(1-$C$9*SIN(RADIANS(D73))^2))) -> 6364768.917 | K76: 0 | L76: =L75+45 -> 135 | M76: 0 | N76: 6378137 | O76: 189.2051472 | P76: 3999304.799 | Q76: =IF(IF(ABS(DEGREES(ATAN2(COS(RADIANS(M$60))*SIN(RADIANS(M76))-SIN(RADIANS(M$60))*COS(RADIANS(M76))*COS(RADIANS(L76-L$60)),COS(RADIANS(M76))*SIN(RADIANS(L76-L$60)))))<0.000000001,0, DEGREES(ATAN2(COS(RADIANS(M$60))*SIN(RADIANS(M76))-SIN(RADIANS(M$60))*COS(RADIANS(M76))*COS(RADIANS(L76-L$60)),COS(RADIANS(M76))*SIN(RADIANS(L76-L$60)))))>=0, IF(ABS(DEGREES(ATAN2(COS(RADIANS(M$60))*SIN(RADIANS(M76))-SIN(RADIANS(M$60))*COS(RADIANS(M76))*COS(RADIANS(L76-L$60)),COS(RADIANS(M76))*SIN(RADIANS(L76-L$60)))))<0.000000001,0, DEGREES(ATAN2(COS(RADIANS(M$60))*SIN(RADIANS(M76))-SIN(RADIANS(M$60))*COS(RADIANS(M76))*COS(RADIANS(L76-L$60)),COS(RADIANS(M76))*SIN(RADIANS(L76-L$60))))), IF(ABS(DEGREES(ATAN2(COS(RADIANS(M$60))*SIN(RADIANS(M76))-SIN(RADIANS(M$60))*COS(RADIANS(M76))*COS(RADIANS(L76-L$60)),COS(RADIANS(M76))*SIN(RADIANS(L76-L$60)))))<0.000000001,0, DEGREES(ATAN2(COS(RADIANS(M$60))*SIN(RADIANS(M76))-SIN(RADIANS(M$60))*COS(RADIANS(M76))*COS(RADIANS(L76-L$60)),COS(RADIANS(M76))*SIN(RADIANS(L76-L$60)))))+360)-O76 -> -0.006420387005 | R76: =GeoDes(K$60,L$60,K76,L76)-P76 -> 2.974573281 | S76: -2874.820328 | T76: -682.5819565
B77: パリ | C77: 地理緯度 | D77: 48.723661 | K77: =K76+45 -> 45 | L77: =L76 -> 135 | M77: 44.80757678 | N77: 6367489.544 | O77: 337.6705806 | P77: 1121450.767 | Q77: =IF(IF(ABS(DEGREES(ATAN2(COS(RADIANS(M$60))*SIN(RADIANS(M77))-SIN(RADIANS(M$60))*COS(RADIANS(M77))*COS(RADIANS(L77-L$60)),COS(RADIANS(M77))*SIN(RADIANS(L77-L$60)))))<0.000000001,0, DEGREES(ATAN2(COS(RADIANS(M$60))*SIN(RADIANS(M77))-SIN(RADIANS(M$60))*COS(RADIANS(M77))*COS(RADIANS(L77-L$60)),COS(RADIANS(M77))*SIN(RADIANS(L77-L$60)))))>=0, IF(ABS(DEGREES(ATAN2(COS(RADIANS(M$60))*SIN(RADIANS(M77))-SIN(RADIANS(M$60))*COS(RADIANS(M77))*COS(RADIANS(L77-L$60)),COS(RADIANS(M77))*SIN(RADIANS(L77-L$60)))))<0.000000001,0, DEGREES(ATAN2(COS(RADIANS(M$60))*SIN(RADIANS(M77))-SIN(RADIANS(M$60))*COS(RADIANS(M77))*COS(RADIANS(L77-L$60)),COS(RADIANS(M77))*SIN(RADIANS(L77-L$60))))), IF(ABS(DEGREES(ATAN2(COS(RADIANS(M$60))*SIN(RADIANS(M77))-SIN(RADIANS(M$60))*COS(RADIANS(M77))*COS(RADIANS(L77-L$60)),COS(RADIANS(M77))*SIN(RADIANS(L77-L$60)))))<0.000000001,0, DEGREES(ATAN2(COS(RADIANS(M$60))*SIN(RADIANS(M77))-SIN(RADIANS(M$60))*COS(RADIANS(M77))*COS(RADIANS(L77-L$60)),COS(RADIANS(M77))*SIN(RADIANS(L77-L$60)))))+360)-O77 -> -0.006667833262 | R77: =GeoDes(K$60,L$60,K77,L77)-P77 -> 0.8639832411 | S77: 315.6463153 | T77: -6.377583323
C78: 経度 | D78: 2.366106 | E78: 333.7993111 | F78: 9767144.314 | G78: =IF(DEGREES(ATAN2(COS(RADIANS(D$59))*SIN(RADIANS(D79))-SIN(RADIANS(D$59))*COS(RADIANS(D79))*COS(RADIANS(D78-D$58)),COS(RADIANS(D79))*SIN(RADIANS(D78-D$58))))>=0,DEGREES(ATAN2(COS(RADIANS(D$59))*SIN(RADIANS(D79))-SIN(RADIANS(D$59))*COS(RADIANS(D79))*COS(RADIANS(D78-D$58)),COS(RADIANS(D79))*SIN(RADIANS(D78-D$58)))),DEGREES(ATAN2(COS(RADIANS(D$59))*SIN(RADIANS(D79))-SIN(RADIANS(D$59))*COS(RADIANS(D79))*COS(RADIANS(D78-D$58)),COS(RADIANS(D79))*SIN(RADIANS(D78-D$58))))+360)-E78 -> -0.1090439562 | H78: =GeoDes(D$57,D$58,D77,D78)-F78 -> 7.751998879 | I78: =$C$5*ACOS(SIN(RADIANS(D$59))*SIN(RADIANS(D79))+COS(RADIANS(D$59))*COS(RADIANS(D79))*COS(RADIANS(D78-D$58)))-F78 -> 12341.1955 | K78: =K77+45 -> 90 | L78: =L77 -> 135 | M78: 90 | N78: 6356752.314 | O78: 0 | P78: 6041794.791 | Q78: =IF(IF(ABS(DEGREES(ATAN2(COS(RADIANS(M$60))*SIN(RADIANS(M78))-SIN(RADIANS(M$60))*COS(RADIANS(M78))*COS(RADIANS(L78-L$60)),COS(RADIANS(M78))*SIN(RADIANS(L78-L$60)))))<0.000000001,0, DEGREES(ATAN2(COS(RADIANS(M$60))*SIN(RADIANS(M78))-SIN(RADIANS(M$60))*COS(RADIANS(M78))*COS(RADIANS(L78-L$60)),COS(RADIANS(M78))*SIN(RADIANS(L78-L$60)))))>=0, IF(ABS(DEGREES(ATAN2(COS(RADIANS(M$60))*SIN(RADIANS(M78))-SIN(RADIANS(M$60))*COS(RADIANS(M78))*COS(RADIANS(L78-L$60)),COS(RADIANS(M78))*SIN(RADIANS(L78-L$60)))))<0.000000001,0, DEGREES(ATAN2(COS(RADIANS(M$60))*SIN(RADIANS(M78))-SIN(RADIANS(M$60))*COS(RADIANS(M78))*COS(RADIANS(L78-L$60)),COS(RADIANS(M78))*SIN(RADIANS(L78-L$60))))), IF(ABS(DEGREES(ATAN2(COS(RADIANS(M$60))*SIN(RADIANS(M78))-SIN(RADIANS(M$60))*COS(RADIANS(M78))*COS(RADIANS(L78-L$60)),COS(RADIANS(M78))*SIN(RADIANS(L78-L$60)))))<0.000000001,0, DEGREES(ATAN2(COS(RADIANS(M$60))*SIN(RADIANS(M78))-SIN(RADIANS(M$60))*COS(RADIANS(M78))*COS(RADIANS(L78-L$60)),COS(RADIANS(M78))*SIN(RADIANS(L78-L$60)))))+360)-O78 -> 0 | R78: 4.77589312 | S78: 8440.038054 | T78: 1604.895264
C79: 地心緯度 | D79: =DEGREES(ATAN2(COS(RADIANS(D77)),(1-$C$9)*SIN(RADIANS(D77)))) -> 48.53277788 | G79: =G78/$E78 -> -0.0003266751984 | H79: =H78/$F78 -> 7.936812061e-07 | I79: =I78/$F78 -> 0.00126354184 | K79: -90 | L79: =L78 -> 135 | M79: -90 | N79: 6356752.314 | O79: 180 | P79: 13962136.66 | Q79: 0 | R79: 10.65915236 | S79: 2742.85907 | T79: -13033.70965
C80: 地心半径 | D80: =SQRT((($C$3^2*COS(RADIANS(D77)))^2+($C$4^2*SIN(RADIANS(D77)))^2)/($C$3^2*(1-$C$9*SIN(RADIANS(D77))^2))) -> 6366102.931 | K80: =K79+45 -> -45 | L80: =L79 -> 135 | M80: -44.80757678 | N80: 6367489.544 | O80: 183.8717028 | P80: 8961567.056 | Q80: -0.002069896732 | R80: 6.681398207 | S80: -5419.326317 | T80: -7990.354985
B81: ローマ | C81: 地理緯度 | D81: 41.799098 | K81: 0 | L81: =L80+45 -> 180 | M81: 0 | N81: 6378137 | O81: 125.0603694 | P81: 5698431.807 | Q81: 0.04974438945 | R81: 4.361920293 | S81: -3949.813701 | T81: -826.1102951
C82: 経度 | D82: 12.592965 | E82: 323.9191694 | F82: 9909464.821 | G82: =IF(DEGREES(ATAN2(COS(RADIANS(D$59))*SIN(RADIANS(D83))-SIN(RADIANS(D$59))*COS(RADIANS(D83))*COS(RADIANS(D82-D$58)),COS(RADIANS(D83))*SIN(RADIANS(D82-D$58))))>=0,DEGREES(ATAN2(COS(RADIANS(D$59))*SIN(RADIANS(D83))-SIN(RADIANS(D$59))*COS(RADIANS(D83))*COS(RADIANS(D82-D$58)),COS(RADIANS(D83))*SIN(RADIANS(D82-D$58)))),DEGREES(ATAN2(COS(RADIANS(D$59))*SIN(RADIANS(D83))-SIN(RADIANS(D$59))*COS(RADIANS(D83))*COS(RADIANS(D82-D$58)),COS(RADIANS(D83))*SIN(RADIANS(D82-D$58))))+360)-E82 -> -0.1423834396 | H82: =GeoDes(D$57,D$58,D81,D82)-F82 -> 7.855198069 | I82: =$C$5*ACOS(SIN(RADIANS(D$59))*SIN(RADIANS(D83))+COS(RADIANS(D$59))*COS(RADIANS(D83))*COS(RADIANS(D82-D$58)))-F82 -> 9883.568887 | K82: =K81+45 -> 45 | L82: =L81 -> 180 | M82: 44.80757678 | N82: 6367489.544 | O82: 60.53969167 | P82: 3477731.234 | Q82: 0.04887884779 | R82: 2.753527054 | S82: 1219.807231 | T82: 221.1096737
C83: 地心緯度 | D83: =DEGREES(ATAN2(COS(RADIANS(D81)),(1-$C$9)*SIN(RADIANS(D81)))) -> 41.60794623 | G83: =G82/$E82 -> -0.0004395647219 | H83: =H82/$F82 -> 7.926964988e-07 | I83: =I82/$F82 -> 0.0009973867474 | K83: =K82+45 -> 90 | L83: =L82 -> 180 | M83: 90 | N83: 6356752.314 | O83: 0 | P83: 6041794.792 | Q83: 0 | R83: 4.774893133 | S83: 8440.037054 | T83: 1604.894264
C84: 地心半径 | D84: =SQRT((($C$3^2*COS(RADIANS(D81)))^2+($C$4^2*SIN(RADIANS(D81)))^2)/($C$3^2*(1-$C$9*SIN(RADIANS(D81))^2))) -> 6368681.163 | K84: -90 | L84: =L83 -> 180 | M84: -90 | N84: 6356752.314 | O84: 180 | P84: 13962136.66 | Q84: 0 | R84: 10.65815238 | S84: 2742.85807 | T84: -13033.71065
B85: シドニー | C85: 地理緯度 | D85: -33.940007 | K85: =K84+45 -> -45 | L85: =L84 -> 180 | M85: -44.80757678 | N85: 6367489.544 | O85: 153.0710083 | P85: 9794690.968 | Q85: 0.01464370439 | R85: 7.368825499 | S85: -5833.672967 | T85: -8643.746394
C86: 経度 | D86: 151.174739 | E86: 170.4637639 | F86: 7798433.588 | G86: =IF(DEGREES(ATAN2(COS(RADIANS(D$59))*SIN(RADIANS(D87))-SIN(RADIANS(D$59))*COS(RADIANS(D87))*COS(RADIANS(D86-D$58)),COS(RADIANS(D87))*SIN(RADIANS(D86-D$58))))>=0,DEGREES(ATAN2(COS(RADIANS(D$59))*SIN(RADIANS(D87))-SIN(RADIANS(D$59))*COS(RADIANS(D87))*COS(RADIANS(D86-D$58)),COS(RADIANS(D87))*SIN(RADIANS(D86-D$58)))),DEGREES(ATAN2(COS(RADIANS(D$59))*SIN(RADIANS(D87))-SIN(RADIANS(D$59))*COS(RADIANS(D87))*COS(RADIANS(D86-D$58)),COS(RADIANS(D87))*SIN(RADIANS(D86-D$58))))+360)-E86 -> 0.006868219338 | H86: =GeoDes(D$57,D$58,D85,D86)-F86 -> 5.796594767 | I86: =$C$5*ACOS(SIN(RADIANS(D$59))*SIN(RADIANS(D87))+COS(RADIANS(D$59))*COS(RADIANS(D87))*COS(RADIANS(D86-D$58)))-F86 -> -5746.623355 | K86: 0 | L86: -180 | M86: 0 | N86: 6378137 | O86: 125.0603694 | P86: 5698431.807 | Q86: 0.04974438945 | R86: 4.361920442 | S86: -3949.813701 | T86: -826.1102951
C87: 地心緯度 | D87: =DEGREES(ATAN2(COS(RADIANS(D85)),(1-$C$9)*SIN(RADIANS(D85)))) -> -33.76197169 | G87: =G86/$E86 -> 4.029137443e-05 | H87: =H86/$F86 -> 7.433024468e-07 | I87: =I86/$F86 -> -0.0007368945686 | K87: =K86+45 -> 45 | L87: =L86 -> -180 | M87: 44.80757678 | N87: 6367489.544 | O87: 60.53969167 | P87: 3477731.234 | Q87: 0.04887884779 | R87: 2.75352721 | S87: 1219.807231 | T87: 221.1096737
C88: 地心半径 | D88: =SQRT((($C$3^2*COS(RADIANS(D85)))^2+($C$4^2*SIN(RADIANS(D85)))^2)/($C$3^2*(1-$C$9*SIN(RADIANS(D85))^2))) -> 6371509.29 | K88: =K87+45 -> 90 | L88: =L87 -> -180 | M88: 90 | N88: 6356752.314 | O88: 0 | P88: 6041794.792 | Q88: 0 | R88: 4.774893133 | S88: 8440.037054 | T88: 1604.894264
B89: ヨハネスブルグ | C89: 地理緯度 | D89: -26.136682 | K89: -90 | L89: =L88 -> -180 | M89: -90 | N89: 6356752.314 | O89: 180 | P89: 13962136.66 | Q89: 0 | R89: 10.65815238 | S89: 2742.85807 | T89: -13033.71065
C90: 経度 | D90: 28.241265 | E90: 259.3170694 | F90: 13580000.01 | G90: =IF(DEGREES(ATAN2(COS(RADIANS(D$59))*SIN(RADIANS(D91))-SIN(RADIANS(D$59))*COS(RADIANS(D91))*COS(RADIANS(D90-D$58)),COS(RADIANS(D91))*SIN(RADIANS(D90-D$58))))>=0,DEGREES(ATAN2(COS(RADIANS(D$59))*SIN(RADIANS(D91))-SIN(RADIANS(D$59))*COS(RADIANS(D91))*COS(RADIANS(D90-D$58)),COS(RADIANS(D91))*SIN(RADIANS(D90-D$58)))),DEGREES(ATAN2(COS(RADIANS(D$59))*SIN(RADIANS(D91))-SIN(RADIANS(D$59))*COS(RADIANS(D91))*COS(RADIANS(D90-D$58)),COS(RADIANS(D91))*SIN(RADIANS(D90-D$58))))+360)-E90 -> -0.1361888447 | H90: =GeoDes(D$57,D$58,D89,D90)-F90 -> 10.5194179 | I90: =$C$5*ACOS(SIN(RADIANS(D$59))*SIN(RADIANS(D91))+COS(RADIANS(D$59))*COS(RADIANS(D91))*COS(RADIANS(D90-D$58)))-F90 -> -9800.4386 | K90: =K89+45 -> -45 | L90: =L89 -> -180 | M90: -44.80757678 | N90: 6367489.544 | O90: 153.0710083 | P90: 9794690.968 | Q90: 0.01464370439 | R90: 7.368825577 | S90: -5833.672967 | T90: -8643.746394
C91: 地心緯度 | D91: =DEGREES(ATAN2(COS(RADIANS(D89)),(1-$C$9)*SIN(RADIANS(D89)))) -> -25.98479885 | G91: =G90/$E90 -> -0.0005251827231 | H91: =H90/$F90 -> 7.746257654e-07 | I91: =I90/$F90 -> -0.0007216817813 | K91: 0 | L91: =L90+45 -> -135 | M91: 0 | N91: 6378137 | O91: 93.00948056 | P91: 9526422.423 | Q91: 0.1298962656 | R91: 7.421118433 | S91: -5464.859998 | T91: -242.1465717
C92: 地心半径 | D92: =SQRT((($C$3^2*COS(RADIANS(D89)))^2+($C$4^2*SIN(RADIANS(D89)))^2)/($C$3^2*(1-$C$9*SIN(RADIANS(D89))^2))) -> 6374015.252 | K92: =K91+45 -> 45 | L92: =L91 -> -135 | M92: 44.80757678 | N92: 6367489.544 | O92: 52.78735556 | P92: 6927381.382 | Q92: 0.1051195672 | R92: 5.49740751 | S92: 4233.418499 | T92: 2243.569636
K93: =K92+45 -> 90 | L93: =L92 -> -135 | M93: 90 | N93: 6356752.314 | O93: 0 | P93: 6041794.793 | Q93: 0 | R93: 4.773893171 | S93: 8440.036054 | T93: 1604.893264
K94: -90 | L94: =L93 -> -135 | M94: -90 | N94: 6356752.314 | O94: 180 | P94: 13962136.67 | Q94: 0 | R94: 10.65715242 | S94: 2742.85707 | T94: -13033.71165
K95: =K94+45 -> -45 | L95: =L94 -> -135 | M95: -44.80757678 | N95: 6367489.544 | O95: 130.8752528 | P95: 12333348.2 | Q95: 0.02370245741 | R95: 9.438211467 | S95: -6892.401357 | T95: -10430.9396
K96: 0 | L96: =L95+45 -> -90 | M96: 0 | N96: 6378137 | O96: 63.99191389 | P96: 13482984.08 | Q96: 0.2870404237 | R96: 10.53920257 | S96: -2342.08247 | T96: 5052.71259
K97: =K96+45 -> 45 | L97: =L96 -> -90 | M97: 44.80757678 | N97: 6367489.544 | O97: 33.03309722 | P97: 9727738.265 | Q97: 0.1299294488 | R97: 7.715575784 | S97: 10639.23472 | T97: 7843.652461
K98: =K97+45 -> 90 | L98: =L97 -> -90 | M98: 90 | N98: 6356752.314 | O98: 0 | P98: 6041794.793 | Q98: 0 | R98: 4.773893211 | S98: 8440.036054 | T98: 1604.893264
K99: -90 | L99: =L98 -> -90 | M99: -90 | N99: 6356752.314 | O99: 180 | P99: 13962136.67 | Q99: 0 | R99: 10.65715246 | S99: 2742.85707 | T99: -13033.71165
K100: =K99+45 -> -45 | L100: =L99 -> -90 | M100: -44.80757678 | N100: 6367489.544 | O100: 119.5744028 | P100: 15694616.53 | Q100: -0.02660204992 | R100: 12.13946419 | S100: -7267.504744 | T100: -11770.84985
K101: 0 | L101: =L100+45 -> -45 | M101: 0 | N101: 6378137 | O101: 9.074522222 | P101: 16005185.39 | Q101: 0.124204613 | R101: 12.46210283 | S101: 13498.98445 | T101: 22286.02057
K102: =K101+45 -> 45 | L102: =L101 -> -45 | M102: 44.80757678 | N102: 6367489.544 | O102: 3.848119444 | P102: 11042464.75 | Q102: 0.0215134366 | R102: 8.751198305 | S102: 16501.86844 | T102: 13327.18652
K103: =K102+45 -> 90 | L103: =L102 -> -45 | M103: 90 | N103: 6356752.314 | O103: 0 | P103: 6041794.794 | Q103: 0 | R103: 4.772893231 | S103: 8440.035054 | T103: 1604.892264
K104: -90 | L104: =L103 -> -45 | M104: -90 | N104: 6356752.314 | O104: 180 | P104: 13962136.67 | Q104: 0 | R104: 10.65615248 | S104: 2742.85607 | T104: -13033.71265
K105: =K104+45 -> -45 | L105: =L104 -> -45 | M105: -44.80757678 | N105: 6367489.544 | O105: 158.3336694 | P105: 18885587.36 | Q105: -0.6697567222 | R105: 14.59309024 | S105: 7760.583808 | T105: 2336.897122
P106: 最大 | Q106: =MAX(ABS(MIN(Q61:Q105)),MAX(Q61:Q105)) -> 0.6697567222 | R106: =MAX(ABS(MIN(R61:R105)),MAX(R61:R105)) -> 14.59309024 | S106: =MAX(ABS(MIN(S61:S105)),MAX(S61:S105)) -> 16501.86844 | T106: =MAX(ABS(MIN(T61:T105)),MAX(T61:T105)) -> 22286.02057

Sheet 楕円体測地線距離
B1: 追加する必要がある定数
C2: AXER=a | F2: ：地球長半径（赤道半径）
C3: EER2=e^2 | F3: ：地球離心率の2乗
C4: CRDDG=π/180 | F4: ：ｄｅｇからｒａｄへの変換定数
B5: 手直し必要
C6: Artand(sy, cy) | F6: ：ｄｅｇ単位で出力するアークタンジェント
B9: Function GeoDes(lat1 As Double, lon1 As Double, lat2 As Double, lon2 As Double) As Double
B11: '測地線に沿った距離の計算
B13: ' lat1 ：入力、第1地点の測地緯度（北緯） [度]
B14: ' lon1 ：入力、第1地点の経度（東経） [度]
B15: ' lat2 ：入力、第2地点の測地緯度（北緯） [度]
B16: ' lon2 ：入力、第2地点の経度（東経） [度]
B17: ' GeoDes：出力、2地点間の距離 [m]
B19: Dim glat1 As Double, glon1 As Double
B20: Dim glat2 As Double, glon2 As Double
B21: Dim tu1 As Double, tu2 As Double
B22: Dim cu1 As Double, su1 As Double, cu2 As Double
B23: Dim s1 As Double, b1 As Double, f1 As Double
B24: Dim x As Double, sx As Double, cx As Double
B25: Dim y As Double, sy As Double, cy As Double
B26: Dim sa As Double, c2a As Double, cz As Double
B27: Dim e As Double, s As Double, c As Double, r As Double, d As Double
B28: Dim a As Double, f As Double
B29: Dim iter As Integer, flag As Boolean
B31: Const EPS As Double = 0.00000000005
B32: Const MAXITER As Integer = 100
B33: iter = 0
B34: flag = False
B36: a = AXER
B37: f = 1# - Sqrt(1# - EER2)
B39: If (lat1 + lat2 = 0# And Abs(lon1 - lon2) >= 179.4) Then
B40: lat2 = 0.5 * (lat1 + lat2)
B41: lon2 = 0.5 * (lon1 + lon2)
B42: flag = True
B43: End If
B45: glat1 = CRDDG * lat1
B46: glon1 = CRDDG * lon1
B47: glat2 = CRDDG * lat2
B48: glon2 = CRDDG * lon2
B50: r = 1# - f
B51: tu1 = r * Tan(glat1)
B52: tu2 = r * Tan(glat2)
B53: cu1 = 1# / Sqrt(1# + tu1 * tu1)
B54: su1 = cu1 * tu1
B55: cu2 = 1# / Sqrt(1# + tu2 * tu2)
B56: s1 = cu1 * cu2
B57: b1 = s1 * tu2
B58: f1 = b1 * tu1
B59: x = glon2 - glon1
B60: d = x + 1#
B62: Do While ((Abs(d - x) > EPS) And (iter <= MAXITER))
B63: iter = iter + 1
B64: sx = Sin(x)
B65: cx = Cos(x)
B66: tu1 = cu2 * sx
B67: tu2 = b1 - su1 * cu2 * cx
B68: sy = Sqrt(tu1 * tu1 + tu2 * tu2)
B69: cy = s1 * cx + f1
B70: y = CRDDG * Artand(sy, cy)
B71: sa = s1 * sx / sy
B72: c2a = 1# - sa * sa
B73: cz = f1 + f1
B74: If (c2a > 0#) Then
B75: cz = cy - cz / c2a
B76: End If
B77: e = cz * cz * 2# - 1#
B78: c = ((-3# * c2a + 4#) * f + 4#) * c2a * f / 16#
B79: d = x
B80: x = ((e * cy * c + cz) * sy * c + y) * sa
B81: x = (1# - c) * x * f + glon2 - glon1
B82: Loop
B84: x = Sqrt((1# / (r * r) - 1#) * c2a + 1#)
B85: x = (x - 1#) / (x + 1#)
B86: c = (x * x / 4# + 1#) / (1# - x)
B87: d = (0.375 * x * x - 1#) * x
B88: x = e * cy
B89: s = ((((sy * sy * 4# - 3#) * (1# - e - e) * cz * d / 6# - x) * d / 4# + cz) * sy * d + y) * c * a * r
B90: If flag Then
B91: s = 2# * s
B92: End If
B93: If (iter >= MAXITER) Then
B94: s = vbInf '計算できなかった
B95: End If
B97: GeoDes = s
B99: End Function

Sheet お問合せ
B2: 技術的なご質問のみお受けします。
C4: sxsijk@Gmail.com | D4: sxsijk@Gmail.com
E85: =C85-#REF! -> 
E86: =IF(C86<0,C86+360,C86)-IF(#REF!<0,#REF!+360,#REF!) -> 
E87: =C87-#REF! -> 
E89: =C89-#REF! -> 
E90: =C90-#REF! -> 
E91: =C91-#REF! -> 
E92: =C92-#REF! -> 
E93: =C93-#REF! -> 
E94: =IF(C94<0,C94+360,C94)-IF(#REF!<0,#REF!+360,#REF!) -> 
E95: =C95-#REF! -> 
E96: =C96-#REF! -> 
E97: =C97-#REF! -> 
E98: =C98-#REF! -> 
E99: =C99-#REF! -> 
C102: 35 | E102: =C102-#REF! -> 
B103: λp | E103: =C103-#REF! -> 
E104: =C104-#REF! -> 
C105: =SQRT(((#REF!^2*COS(RADIANS(C102)))^2+(C$3^2*SIN(RADIANS(C102)))^2)/(#REF!^2*(1-C$4*SIN(RADIANS(C102))^2))) ->  | E105: =C105-#REF! -> 
C106: =DEGREES(C108/C105) ->  | E106: =C106-#REF! -> 
E107: =C107-#REF! -> 
E108: =C108-#REF! -> 
E109: =IF(C109<0,C109+360,C109)-IF(#REF!<0,#REF!+360,#REF!) -> 
E110: =C110-#REF! -> 
C111: =DEGREES(ATAN2((1-C$4)*COS(RADIANS(C110)),SIN(RADIANS(C110)))) ->  | E111: =C111-#REF! -> 
C112: =SQRT(((#REF!^2*COS(RADIANS(C111)))^2+(C$3^2*SIN(RADIANS(C111)))^2)/(#REF!^2*(1-C$4*SIN(RADIANS(C111))^2))) ->  | E112: =C112-#REF! -> 
C113: =DEGREES(ACOS(COS(RADIANS(C$104))*COS(RADIANS(C110))*(COS(RADIANS(C$103))*COS(RADIANS(C109))+SIN(RADIANS(C$103))*SIN(RADIANS(C109)))+SIN(RADIANS(C$104))*SIN(RADIANS(C110)))) -> 0 | E113: =C113-#REF! -> 
C114: =DEGREES(ATAN2(COS(RADIANS(C$104))*SIN(RADIANS(C110))-SIN(RADIANS(C$104))*COS(RADIANS(C110))*COS(RADIANS(C109-C$103)),COS(RADIANS(C110))*SIN(RADIANS(C109-C$103)))) ->  | E114: =C114-#REF! -> 
C115: =SQRT(((C$105-C112)*COS(RADIANS(C113/2)))^2+(MAX(C$105,C112)*RADIANS(C113)-ABS(C$105-C112)*SIN(RADIANS(C113/2)))^2) ->  | E115: =C115-#REF! -> 
A116: 補正 | B116: θ＝θ+(d0-d)/r | C116: =C106+DEGREES((C108-C115)/C112) ->  | E116: =C116-#REF! -> 
C117: =C107 -> 0 | E117: =C117-#REF! -> 
C118: =C108 -> 0 | E118: =C118-#REF! -> 
E119: =IF(C119<0,C119+360,C119)-IF(#REF!<0,#REF!+360,#REF!) -> 
E120: =C120-#REF! -> 
C121: =DEGREES(ATAN2((1-C$4)*COS(RADIANS(C120)),SIN(RADIANS(C120)))) ->  | E121: =C121-#REF! -> 
C122: =SQRT(((#REF!^2*COS(RADIANS(C121)))^2+(C$3^2*SIN(RADIANS(C121)))^2)/(#REF!^2*(1-C$4*SIN(RADIANS(C121))^2))) ->  | E122: =C122-#REF! -> 
C123: =DEGREES(ACOS(COS(RADIANS(C$104))*COS(RADIANS(C120))*(COS(RADIANS(C$103))*COS(RADIANS(C119))+SIN(RADIANS(C$103))*SIN(RADIANS(C119)))+SIN(RADIANS(C$104))*SIN(RADIANS(C120)))) -> 0 | E123: =C123-#REF! -> 
C124: =DEGREES(ATAN2(COS(RADIANS(C$104))*SIN(RADIANS(C120))-SIN(RADIANS(C$104))*COS(RADIANS(C120))*COS(RADIANS(C119-C$103)),COS(RADIANS(C120))*SIN(RADIANS(C119-C$103)))) ->  | E124: =C124-#REF! -> 
C125: =SQRT(((C$105-C122)*COS(RADIANS(C123/2)))^2+(MAX(C$105,C122)*RADIANS(C123)-ABS(C$105-C122)*SIN(RADIANS(C123/2)))^2) ->  | E125: =C125-#REF! -> 
